bitfinex/quotes_SOLUSD_20250611
["timestamp","ask_amount","ask_price","bid_price","bid_amount"]
[1749634702033,28.88371983,165.54,165.53,7.00499659]
[1749634702347,28.88371983,165.54,165.53,2.49693469]
[1749634702647,28.88371983,165.54,165.53,7.00522998]
[1749634702851,28.88371983,165.54,165.53,7.00525091]
[1749634703459,28.88371983,165.54,165.53,2.49693469]
[1749634703630,28.88371983,165.54,165.53,7.00558586]
[1749634704037,28.88371983,165.54,165.53,7.00192503]
[1749634704471,28.88371983,165.54,165.53,2.49693469]
[1749634704760,28.88371983,165.54,165.53,6.99825382]
[1749634705338,18.64964886,165.54,165.53,6.99825382]
[1749634705543,28.88371983,165.54,165.53,2.49693469]
[1749634705949,28.88371983,165.54,165.53,6.99849735]
[1749634706249,28.88371983,165.54,165.53,2.49693469]
[1749634706459,28.88371983,165.54,165.53,6.99858096]
[1749634706850,28.88371983,165.54,165.53,2.49693469]
[1749634708848,18.64964886,165.54,165.53,2.49693469]
[1749634709267,28.88371983,165.54,165.53,2.49693469]
[1749634716777,5.52,165.59,165.53,2.49693469]
[1749634716968,10.23407097,165.55,165.53,2.49693469]
[1749634717563,10.23407097,165.55,165.54,4.49781774]
[1749634717564,28.88371983,165.55,165.54,4.49781774]
[1749634718067,18.64964886,165.54,165.53,2.49693469]
[1749634718361,10.23407097,165.54,165.53,2.49693469]
[1749634718565,10.23407097,165.54,165.53,6.99509716]
[1749634718883,10.23407097,165.54,165.53,6.99513847]
[1749634719061,10.23407097,165.54,165.53,6.99515935]
[1749634719263,10.23407097,165.54,165.53,6.99516663]
[1749634719655,10.23407097,165.54,165.53,6.99515935]
[1749634720081,10.23407097,165.54,165.53,2.49693469]
[1749634720384,10.23407097,165.55,165.53,6.99511758]
[1749634720579,10.23407097,165.55,165.54,4.49818289]
[1749634720965,10.23407097,165.55,165.53,2.49693469]
[1749634721163,10.23407097,165.55,165.54,4.50151577]
[1749634721462,10.23407097,165.55,165.53,2.49693469]
[1749634721658,10.23407097,165.55,165.54,4.50155028]
[1749634721869,10.23407097,165.55,165.54,4.5015508]
[1749634722073,10.23407097,165.55,165.54,4.50155028]
[1749634722600,10.23407097,165.55,165.54,4.50167288]
[1749634723587,10.23407097,165.55,165.54,4.50133212]
[1749634724116,10.23407097,165.55,165.54,4.50141571]
[1749634724389,10.23407097,165.55,165.53,2.49693469]
[1749634724561,10.23407097,165.55,165.54,4.50132535]
[1749634724758,10.23407097,165.55,165.54,4.50689676]
[1749634725073,10.23407097,165.56,165.54,4.50689676]
[1749634725270,10.23407097,165.56,165.53,8.12413356]
[1749634725588,28.88371983,165.57,165.54,4.5067622]
[1749634725796,10.23407097,165.59,165.55,4.50634533]
[1749634726090,5.52,165.61,165.56,4.50616481]
[1749634726298,5.52,165.61,165.57,4.50586082]
[1749634726299,28.88371983,165.6,165.57,4.50586082]
[1749634726460,28.88371983,165.6,165.56,5.62719887]
[1749634726784,28.88371983,165.6,165.57,4.50590344]
[1749634726986,28.88371983,165.6,165.58,4.50575024]
[1749634727168,28.88371983,165.6,165.59,4.50566576]
[1749634727369,28.88371983,165.6,165.59,4.50577697]
[1749634727576,28.88371983,165.6,165.59,4.50575332]
[1749634728408,28.88371983,165.6,165.59,4.50597973]
[1749634728600,28.88371983,165.6,165.59,4.50589607]
[1749634728993,28.88371983,165.6,165.59,4.50588893]
[1749634729506,28.88371983,165.6,165.59,4.50605625]
[1749634730016,18.64964886,165.6,165.59,4.50613977]
[1749634730313,5.52,165.61,165.54,10.23407097]
[1749634730314,15.75407097,165.61,165.57,1.6035]
[1749634730497,10.23407097,165.59,165.58,4.50567293]
[1749634730688,28.88371983,165.59,165.58,4.50567293]
[1749634731007,28.88371983,165.59,165.53,2.49693469]
[1749634731008,18.64964886,165.58,165.53,2.49693469]
[1749634731220,18.64964886,165.58,165.54,4.5066693]
[1749634731405,10.23407097,165.55,165.53,2.49693469]
[1749634731714,18.64964886,165.55,165.53,2.49693469]
[1749634731911,10.23407097,165.56,165.54,4.5066858]
[1749634732100,10.23407097,165.56,165.53,2.49693469]
[1749634732296,18.64964886,165.59,165.54,4.50677906]
[1749634732499,18.64964886,165.59,165.55,20.36739168]
[1749634732809,5.52,165.61,165.57,5.62719887]
[1749634732810,15.75407097,165.61,165.57,5.62719887]
[1749634733014,15.75407097,165.61,165.58,4.50511466]
[1749634733309,5.52,165.61,165.57,15.86126984]
[1749634733507,5.52,165.61,165.58,4.50464125]
[1749634733681,10.23407097,165.63,165.59,6.15534125]
[1749634733883,10.23407097,165.64,165.6,4.50399772]
[1749634734088,10.23407097,165.64,165.59,17.51196984]
[1749634734306,10.23407097,165.64,165.6,4.50286109]
[1749634734488,10.23407097,165.65,165.61,4.50285633]
[1749634734689,10.23407097,165.65,165.62,4.50268501]
[1749634734890,10.23407097,165.65,165.63,4.50233957]
[1749634735090,10.23407097,165.65,165.64,4.51024138]
[1749634735384,10.23407097,165.65,165.6,10.23407097]
[1749634737009,18.64964886,165.66,165.6,10.23407097]
[1749634737319,10.23407097,165.65,165.61,4.47418633]
[1749634737611,10.23407097,165.65,165.6,10.23407097]
[1749634737817,10.23407097,165.65,165.61,4.47397115]
[1749634737988,10.23407097,165.65,165.6,10.23407097]
[1749634739142,28.88371983,165.66,165.61,14.70804883]
[1749634739316,3.01086026,165.69,165.64,10.23407097]
[1749634739317,10.23407097,165.69,165.64,10.23407097]
[1749634739507,18.64964886,165.68,165.65,10.23407097]
[1749634739705,10.23407097,165.7,165.65,10.23407097]
[1749634740211,18.64964886,165.71,165.66,10.23407097]
[1749634740420,28.88371983,165.71,165.66,10.23407097]
[1749634740721,18.64964886,165.68,165.64,10.23407097]
[1749634740894,18.64964886,165.68,165.65,4.46957459]
[1749634741095,18.64964886,165.68,165.65,10.23407097]
[1749634741305,18.64964886,165.69,165.65,10.23407097]
[1749634741506,5.52,165.72,165.65,10.23407097]
[1749634741709,28.88371983,165.71,165.66,10.23407097]
[1749634742893,10.23407097,165.7,165.65,10.23407097]
[1749634743121,18.64964886,165.71,165.66,10.23407097]
[1749634743423,28.88371983,165.71,165.66,11.79727097]
[1749634743605,18.64964886,165.71,165.68,10.23407097]
[1749634743806,5.52,165.72,165.7,10.23407097]
[1749634744329,18.64964886,165.74,165.7,10.23407097]
[1749634745207,18.64964886,165.75,165.71,10.23407097]
[1749634745932,28.88371983,165.75,165.7,10.23407097]
[1749634746524,10.23407097,165.71,165.66,7.8697]
[1749634746837,10.23407097,165.7,165.66,7.8697]
[1749634747000,10.23407097,165.72,165.67,10.23407097]
[1749634748005,10.23407097,165.77,165.71,10.23407097]
[1749634748208,10.23407097,165.74,165.69,10.23407097]
[1749634748428,18.64964886,165.79,165.69,10.23407097]
[1749634748638,18.64964886,165.79,165.49,48.94056229]
[1749634748639,18.64964886,165.69,165.62,1.6365]
[1749634748805,10.23407097,165.64,165.62,1.6365]
[1749634750319,18.64964886,165.7,165.63,10.23407097]
[1749634750517,10.23407097,165.68,165.63,10.23407097]
[1749634750824,10.23407097,165.67,165.62,11.87057097]
[1749634752913,18.64964886,165.7,165.62,11.87057097]
[1749634753226,10.23407097,165.67,165.62,11.87057097]
[1749634753425,10.23407097,165.67,165.62,1.6365]
[1749634753632,10.23407097,165.66,165.62,1.6365]
[1749634753826,18.64964886,165.7,165.62,1.6365]
[1749634754164,10.23407097,165.66,165.62,1.6365]
[1749634754713,18.64964886,165.7,165.62,1.6365]
[1749634755025,10.23407097,165.67,165.62,1.6365]
[1749634755437,10.23407097,165.67,165.63,4.45541191]
[1749634755744,10.23407097,165.67,165.62,1.6365]
[1749634755915,10.23407097,165.67,165.63,4.45551267]
[1749634756115,10.23407097,165.67,165.62,1.6365]
[1749634756437,10.23407097,165.67,165.63,4.45572711]
[1749634756626,10.23407097,165.67,165.62,1.6365]
[1749634756827,10.23407097,165.67,165.63,4.45548378]
[1749634757034,10.23407097,165.67,165.62,1.6365]
[1749634757347,10.23407097,165.67,165.63,4.45526822]
[1749634757546,10.23407097,165.67,165.62,1.6365]
[1749634757749,10.23407097,165.7,165.65,10.23407097]
[1749634758041,10.23407097,165.69,165.65,26.0]
[1749634758650,10.23407097,165.69,165.64,10.23407097]
[1749634758810,10.23407097,165.69,165.64,36.23407097]
[1749634759439,18.64964886,165.72,165.64,36.23407097]
[1749634759645,10.23407097,165.69,165.64,36.23407097]
[1749634760126,18.05267097,165.68,165.62,2.61302944]
[1749634760447,18.05267097,165.68,165.53,2.49693469]
[1749634760448,18.64964886,165.54,165.53,2.49693469]
[1749634760633,28.88371983,165.54,165.53,2.49693469]
[1749634760958,18.64964886,165.5,165.44,26.0]
[1749634761119,18.64964886,165.5,165.45,11.85827097]
[1749634761120,10.23407097,165.5,165.45,11.85827097]
[1749634761322,17.12318814,165.5,165.45,18.74738814]
[1749634762119,17.12318814,165.5,165.45,1.6242]
[1749634762447,17.12318814,165.5,165.45,18.74738814]
[1749634763020,18.64964886,165.5,165.45,18.74738814]
[1749634763519,18.64964886,165.5,165.45,1.6242]
[1749634763925,17.12318814,165.5,165.46,4.46427364]
[1749634764238,17.12318814,165.5,165.47,4.46427314]
[1749634764555,17.12318814,165.5,165.45,18.74738814]
[1749634764738,17.12318814,165.5,165.46,4.46427263]
[1749634764925,17.12318814,165.5,165.45,18.74738814]
[1749634765126,17.12318814,165.5,165.46,4.46427364]
[1749634765441,17.12318814,165.5,165.47,4.46428036]
[1749634765645,17.12318814,165.5,165.45,18.74738814]
[1749634766143,18.64964886,165.56,165.48,17.12318814]
[1749634766446,17.12318814,165.53,165.48,17.12318814]
[1749634766651,17.12318814,165.53,165.45,27.6242]
[1749634766946,44.64964886,165.56,165.46,21.57497523]
[1749634766947,35.772837,165.51,165.46,21.57497523]
[1749634767123,35.772837,165.51,165.47,17.12318814]
[1749634769646,3.06349438,165.55,165.47,17.12318814]
[1749634769647,18.64964886,165.54,165.47,17.12318814]
[1749634769844,18.64964886,165.51,165.47,17.12318814]
[1749634770545,18.64964886,165.55,165.5,17.12318814]
[1749634770852,35.772837,165.55,165.5,17.12318814]
[1749634771043,35.772837,165.55,165.51,17.12318814]
[1749634771342,35.772837,165.56,165.52,17.12318814]
[1749634771737,17.12318814,165.54,165.47,25.36]
[1749634771938,35.772837,165.56,165.51,17.12318814]
[1749634772445,18.64964886,165.56,165.53,17.12318814]
[1749634776430,18.64964886,165.56,165.48,115.9]
[1749634776725,18.64964886,165.56,165.53,17.12318814]
[1749634778532,18.64964886,165.56,165.52,17.12318814]
[1749634781262,17.12318814,165.55,165.48,115.9]
[1749634781558,18.64964886,165.54,165.48,26.0]
[1749634781737,18.64964886,165.54,165.5,17.12318814]
[1749634783242,18.64964886,165.54,165.5,10.2672939]
[1749634784257,10.2672939,165.51,165.45,117.5242]
[1749634784459,28.91694276,165.52,165.47,10.2672939]
[1749634784637,18.64964886,165.52,165.48,10.2672939]
[1749634785939,28.91694276,165.52,165.45,52.8842]
[1749634786160,28.91694276,165.52,165.47,10.2672939]
[1749634787945,18.64964886,165.52,165.47,10.2672939]
[1749634788147,10.2672939,165.52,165.47,10.2672939]
[1749634788662,10.2672939,165.52,165.45,52.8842]
[1749634788963,10.2672939,165.52,165.47,10.2672939]
[1749634789169,10.2672939,165.52,165.45,52.8842]
[1749634789466,10.2672939,165.52,165.47,10.2672939]
[1749634790771,18.64964886,165.52,165.48,10.2672939]
[1749634791856,28.91694276,165.52,165.47,10.2672939]
[1749634792162,10.2672939,165.51,165.45,52.8842]
[1749634792353,10.2672939,165.51,165.47,10.2672939]
[1749634792859,10.2672939,165.51,165.45,52.8842]
[1749634792860,28.91694276,165.5,165.46,10.2672939]
[1749634793060,18.64964886,165.5,165.46,10.2672939]
[1749634796064,18.64964886,165.5,165.45,27.6242]
[1749634796364,18.64964886,165.5,165.46,10.2672939]
[1749634797063,10.2672939,165.51,165.46,10.2672939]
[1749634797249,18.64964886,165.5,165.46,10.2672939]
[1749634797661,18.64964886,165.5,165.45,27.6242]
[1749634797858,18.64964886,165.5,165.46,10.2672939]
[1749634800863,10.2672939,165.51,165.46,10.2672939]
[1749634801173,18.64964886,165.5,165.46,10.2672939]
[1749634801762,10.2672939,165.5,165.46,10.2672939]
[1749634802274,10.2672939,165.49,165.45,27.6242]
[1749634802464,10.2672939,165.49,165.41,96.3542]
[1749634802465,28.91694276,165.48,165.41,33.1283]
[1749634802655,28.91694276,165.48,165.42,10.2672939]
[1749634802656,10.2672939,165.47,165.42,10.2672939]
[1749634803053,10.2672939,165.47,165.43,10.2672939]
[1749634803350,10.2672939,165.48,165.43,10.2672939]
[1749634805176,26.0,165.54,165.44,10.2672939]
[1749634805362,18.64964886,165.48,165.44,10.2672939]
[1749634806763,10.2672939,165.48,165.43,10.2672939]
[1749634807567,10.2672939,165.47,165.42,26.0]
[1749634807869,10.2672939,165.47,165.41,1.5141]
[1749634807870,28.91694276,165.46,165.41,1.5141]
[1749634808177,10.2672939,165.46,165.42,10.2672939]
[1749634808961,18.64964886,165.54,165.45,10.2672939]
[1749634809156,18.64964886,165.5,165.45,10.2672939]
[1749634809476,10.2672939,165.5,165.45,10.2672939]
[1749634809687,18.64964886,165.5,165.45,10.2672939]
[1749634809864,10.2672939,165.51,165.42,115.9]
[1749634809865,10.2672939,165.51,165.42,127.13713719]
[1749634810068,18.64964886,165.5,165.46,10.2672939]
[1749634811679,18.64964886,165.53,165.46,10.2672939]
[1749634811983,18.64964886,165.51,165.47,10.2672939]
[1749634812790,18.64964886,165.51,165.43,51.14]
[1749634813101,18.64964886,165.51,165.47,10.2672939]
[1749634817063,18.64964886,165.51,165.43,141.04]
[1749634817278,18.64964886,165.54,165.47,10.2672939]
[1749634817488,28.91694276,165.54,165.49,10.2672939]
[1749634817968,18.64964886,165.54,165.5,10.2672939]
[1749634818171,28.91694276,165.56,165.51,10.2672939]
[1749634819391,28.91694276,165.56,165.46,115.9]
[1749634819392,18.64964886,165.56,165.52,10.2672939]
[1749634819594,28.91694276,165.56,165.51,10.2672939]
[1749634821987,18.64964886,165.54,165.5,10.2672939]
[1749634824495,10.2672939,165.54,165.48,25.08]
[1749634824800,10.2672939,165.54,165.49,10.2672939]
[1749634825171,10.2672939,165.53,165.49,10.2672939]
[1749634825882,10.2672939,165.54,165.49,10.2672939]
[1749634832419,10.2672939,165.51,165.46,36.2672939]
[1749634832585,10.2672939,165.5,165.45,11.7911939]
[1749634833800,10.2672939,165.5,165.45,1.5239]
[1749634835203,31.5,165.57,165.45,1.5239]
[1749634835204,10.2672939,165.48,165.45,1.5239]
[1749634835403,10.2672939,165.48,165.43,36.2672939]
[1749634835581,28.91694276,165.47,165.43,26.0]
[1749634835786,10.2672939,165.46,165.43,26.0]
[1749634835986,16.3103939,165.52,165.43,26.0]
[1749634835987,10.2672939,165.47,165.43,26.0]
[1749634836180,10.2672939,165.48,165.43,36.2672939]
[1749634838720,10.2672939,165.47,165.42,10.2672939]
[1749634840300,10.2672939,165.47,165.41,1.575]
[1749634840503,10.2672939,165.47,165.42,10.2672939]
[1749634841390,10.2672939,165.47,165.41,1.575]
[1749634841391,44.64964886,165.51,165.43,10.2672939]
[1749634841714,10.2672939,165.48,165.44,10.2672939]
[1749634841905,18.64964886,165.48,165.44,10.2672939]
[1749634844252,18.64964886,165.48,165.32,4.66051095]
[1749634844253,33.1829,165.45,165.32,4.66051095]
[1749634844397,18.64964886,165.44,165.39,10.2672939]
[1749634844595,18.64964886,165.46,165.39,26.0]
[1749634844905,18.64964886,165.44,165.39,36.2672939]
[1749634845217,18.64964886,165.45,165.39,26.0]
[1749634845418,5.52,165.47,165.41,10.2672939]
[1749634845613,18.64964886,165.46,165.42,10.2672939]
[1749634845810,18.64964886,165.46,165.41,10.2672939]
[1749634847917,18.64964886,165.46,165.43,10.2672939]
[1749634848124,18.64964886,165.47,165.43,10.2672939]
[1749634848821,18.64964886,165.48,165.44,10.2672939]
[1749634849031,18.64964886,165.49,165.44,10.2672939]
[1749634849213,18.64964886,165.49,165.45,10.2672939]
[1749634853020,10.2672939,165.5,165.45,10.2672939]
[1749634854306,18.64964886,165.52,165.44,11.8426939]
[1749634854505,10.2672939,165.49,165.44,11.8426939]
[1749634859015,10.2672939,165.49,165.45,10.2672939]
[1749634860322,18.64964886,165.52,165.45,10.2672939]
[1749634860534,18.64964886,165.49,165.45,10.2672939]
[1749634862727,13.75424805,165.53,165.45,10.2672939]
[1749634863029,10.2672939,165.51,165.46,10.2672939]
[1749634863236,10.2672939,165.5,165.45,10.2672939]
[1749634863445,18.64964886,165.52,165.45,10.2672939]
[1749634863642,10.2672939,165.49,165.45,10.2672939]
[1749634864128,10.2672939,165.5,165.45,10.2672939]
[1749634864729,10.2672939,165.5,165.46,10.2672939]
[1749634865514,10.2672939,165.5,165.44,1.5754]
[1749634865928,10.2672939,165.5,165.46,10.2672939]
[1749634866326,10.2672939,165.5,165.44,1.5754]
[1749634866535,18.64964886,165.46,165.4,7.50526245]
[1749634866715,18.64964886,165.51,165.39,19.39225635]
[1749634866917,18.64964886,165.51,165.39,35.12496245]
[1749634867149,18.64964886,165.51,165.42,10.2672939]
[1749634867453,10.2672939,165.46,165.42,10.2672939]
[1749634868049,10.2672939,165.46,165.4,10.2672939]
[1749634868050,10.2672939,165.45,165.4,10.2672939]
[1749634868247,10.2672939,165.44,165.39,27.6197]
[1749634868437,18.64964886,165.44,165.39,11.8869939]
[1749634868620,10.2672939,165.43,165.39,11.8869939]
[1749634869438,10.2672939,165.43,165.39,1.6197]
[1749634869842,28.91694276,165.44,165.39,11.8869939]
[1749634870233,28.91694276,165.44,165.39,1.6197]
[1749634870420,28.91694276,165.44,165.39,11.8869939]
[1749634870745,28.91694276,165.44,165.39,1.6197]
[1749634870916,10.2672939,165.43,165.39,1.6197]
[1749634871918,10.2672939,165.44,165.39,11.8869939]
[1749634872344,10.2672939,165.44,165.39,1.6197]
[1749634872532,10.2672939,165.44,165.4,10.2672939]
[1749634872859,18.64964886,165.44,165.4,10.2672939]
[1749634873753,18.64964886,165.48,165.4,10.2672939]
[1749634873961,18.64964886,165.44,165.4,10.2672939]
[1749634876749,10.2672939,165.44,165.4,10.2672939]
[1749634877061,10.2672939,165.44,165.39,11.8869939]
[1749634877261,10.2672939,165.44,165.37,33.50526245]
[1749634877463,10.2672939,165.43,165.38,17.77255635]
[1749634877828,10.2672939,165.42,165.38,7.50526245]
[1749634878038,10.2672939,165.42,165.38,10.2672939]
[1749634878556,18.64964886,165.47,165.38,10.2672939]
[1749634878858,10.2672939,165.42,165.38,10.2672939]
[1749634879044,10.2672939,165.43,165.38,10.2672939]
[1749634879248,10.2672939,165.41,165.37,26.0]
[1749634879459,10.2672939,165.4,165.37,26.0]
[1749634880246,10.2672939,165.41,165.37,26.0]
[1749634881162,10.2672939,165.41,165.36,10.2672939]
[1749634881671,10.2672939,165.4,165.35,1.5445]
[1749634881961,18.64964886,165.43,165.36,10.2672939]
[1749634882167,10.2672939,165.4,165.36,10.2672939]
[1749634882460,10.2672939,165.4,165.35,1.5445]
[1749634882651,18.64964886,165.4,165.36,10.2672939]
[1749634882958,18.64964886,165.4,165.37,10.2672939]
[1749634883161,10.2672939,165.43,165.38,10.2672939]
[1749634883668,18.64964886,165.45,165.39,10.2672939]
[1749634883967,18.64964886,165.44,165.4,10.2672939]
[1749634886062,18.64964886,165.44,165.38,27.571]
[1749634886253,18.64964886,165.44,165.4,10.2672939]
[1749634888157,18.64964886,165.47,165.4,10.2672939]
[1749634888354,18.64964886,165.46,165.4,10.2672939]
[1749634888658,18.64964886,165.44,165.4,10.2672939]
[1749634889161,18.64964886,165.44,165.38,27.571]
[1749634889365,18.64964886,165.44,165.4,10.2672939]
[1749634891970,18.64964886,165.49,165.38,142.551]
[1749634892173,18.64964886,165.46,165.42,10.2672939]
[1749634893871,10.2672939,165.46,165.41,10.2672939]
[1749634896858,10.2672939,165.46,165.38,142.551]
[1749634897059,10.2672939,165.43,165.38,101.7382939]
[1749634897264,10.2672939,165.42,165.38,1.571]
[1749634897963,18.64964886,165.43,165.38,1.571]
[1749634898163,10.2672939,165.43,165.38,11.8382939]
[1749634898563,10.2672939,165.42,165.38,1.571]
[1749634899265,44.64964886,165.47,165.38,1.571]
[1749634899464,10.2672939,165.41,165.38,1.571]
[1749634899956,10.2672939,165.41,165.36,10.2672939]
[1749634900277,10.2672939,165.39,165.35,26.0]
[1749634900575,10.2672939,165.39,165.34,1.527]
[1749634900576,10.2672939,165.37,165.3,6.4261]
[1749634900773,18.64964886,165.35,165.31,10.2672939]
[1749634901074,26.0,165.4,165.31,10.2672939]
[1749634901372,18.64964886,165.36,165.32,10.2672939]
[1749634902578,10.2672939,165.36,165.32,10.2672939]
[1749634903079,18.64964886,165.39,165.32,10.2672939]
[1749634903380,10.2672939,165.36,165.3,1.5881]
[1749634903672,10.2672939,165.36,165.31,10.2672939]
[1749634905880,10.2672939,165.36,165.3,1.5881]
[1749634906086,10.2672939,165.35,165.31,10.2672939]
[1749634907382,18.64964886,165.38,165.31,10.2672939]
[1749634907588,10.2672939,165.35,165.31,10.2672939]
[1749634908381,18.64964886,165.38,165.31,10.2672939]
[1749634908584,10.2672939,165.36,165.31,10.2672939]
[1749634908784,26.0,165.41,165.32,36.2672939]
[1749634908970,18.64964886,165.4,165.33,10.2672939]
[1749634909161,10.2672939,165.38,165.33,10.2672939]
[1749634909965,10.2672939,165.37,165.32,36.2672939]
[1749634910663,10.2672939,165.38,165.32,26.0]
[1749634911072,10.2672939,165.36,165.32,36.2672939]
[1749634911381,10.2672939,165.36,165.32,26.0]
[1749634911588,10.2672939,165.35,165.32,26.0]
[1749634911780,10.2672939,165.35,165.3,101.7553939]
[1749634913388,18.64964886,165.4,165.31,10.2672939]
[1749634913589,10.2672939,165.36,165.31,10.2672939]
[1749634913789,10.2672939,165.36,165.32,10.2672939]
[1749634915378,10.2672939,165.37,165.32,10.2672939]
[1749634915776,18.64964886,165.4,165.3,1.5881]
[1749634915983,18.64964886,165.39,165.32,10.2672939]
[1749634916181,32.98100907,165.43,165.35,10.2672939]
[1749634916378,18.64964886,165.39,165.35,10.2672939]
[1749634916693,10.2672939,165.4,165.35,10.2672939]
[1749634916909,18.64964886,165.43,165.38,10.2672939]
[1749634917065,18.64964886,165.43,165.39,10.2672939]
[1749634917270,5.52,165.44,165.39,10.2672939]
[1749634917577,5.52,165.44,165.4,10.2672939]
[1749634918192,0.5973,165.49,165.4,10.2672939]
[1749634918193,18.65547688,165.55,165.42,10.2672939]
[1749634918499,10.2672939,165.48,165.43,10.2672939]
[1749634918683,18.64964886,165.51,165.4,26.0]
[1749634918877,10.2672939,165.47,165.42,10.2672939]
[1749634920699,28.91694276,165.46,165.4,26.0]
[1749634920899,10.2672939,165.45,165.4,36.2672939]
[1749634921102,10.2672939,165.43,165.4,26.0]
[1749634921285,10.2672939,165.43,165.39,10.2672939]
[1749634921881,10.2672939,165.44,165.39,10.2672939]
[1749634922187,10.2672939,165.42,165.37,36.2672939]
[1749634923393,10.2672939,165.41,165.37,36.2672939]
[1749634924585,10.2672939,165.45,165.4,10.2672939]
[1749634924784,10.2672939,165.46,165.41,10.2672939]
[1749634925096,10.2672939,165.48,165.43,10.2672939]
[1749634925602,18.64964886,165.5,165.43,10.2672939]
[1749634925603,10.2672939,165.47,165.43,10.2672939]
[1749634926875,18.64964886,165.5,165.43,10.2672939]
[1749634927082,10.2672939,165.48,165.43,10.2672939]
[1749634927281,10.2672939,165.48,165.44,10.2672939]
[1749634927591,10.2672939,165.48,165.43,36.2672939]
[1749634928303,18.64964886,165.48,165.44,10.2672939]
[1749634928494,28.91694276,165.48,165.44,10.2672939]
[1749634928688,18.64964886,165.48,165.44,10.2672939]
[1749634928895,10.2672939,165.48,165.44,10.2672939]
[1749634929099,10.2672939,165.48,165.43,36.2672939]
[1749634929906,18.64964886,165.51,165.44,10.2672939]
[1749634930092,18.64964886,165.48,165.44,10.2672939]
[1749634931603,18.64964886,165.51,165.44,10.2672939]
[1749634931789,18.64964886,165.48,165.44,10.2672939]
[1749634932891,10.2672939,165.47,165.43,37.9277939]
[1749634933089,28.91694276,165.46,165.41,10.2672939]
[1749634933413,18.64964886,165.46,165.42,10.2672939]
[1749634933713,18.64964886,165.46,165.4,57.144]
[1749634933714,18.64964886,165.46,165.43,10.2672939]
[1749634934211,18.64964886,165.46,165.42,10.2672939]
[1749634935111,18.64964886,165.42,165.37,10.2672939]
[1749634935314,28.91694276,165.42,165.37,36.2672939]
[1749634936105,28.91694276,165.42,165.38,10.2672939]
[1749634936294,10.2672939,165.4,165.35,7.8763]
[1749634936493,10.2672939,165.39,165.35,1.5361]
[1749634936695,10.2672939,165.4,165.35,11.8033939]
[1749634937208,10.2672939,165.4,165.35,1.5361]
[1749634937413,10.2672939,165.39,165.35,1.5361]
[1749634937596,18.64964886,165.4,165.35,1.5361]
[1749634937792,10.2672939,165.39,165.35,1.5361]
[1749634938690,18.64964886,165.43,165.35,1.5361]
[1749634938890,10.2672939,165.39,165.35,1.5361]
[1749634939598,18.64964886,165.43,165.35,1.5361]
[1749634939803,10.2672939,165.39,165.35,1.5361]
[1749634941409,10.2672939,165.38,165.35,1.5361]
[1749634942313,18.64964886,165.43,165.35,1.5361]
[1749634942513,10.2672939,165.38,165.35,1.5361]
[1749634943210,10.2672939,165.37,165.35,1.5361]
[1749634943414,10.2672939,165.37,165.33,115.9]
[1749634944117,18.64964886,165.43,165.34,10.2672939]
[1749634944409,10.2672939,165.39,165.34,10.2672939]
[1749634944610,10.2672939,165.38,165.33,151.2272939]
[1749634944826,10.2672939,165.38,165.25,162.82853674]
[1749634944827,10.2672939,165.35,165.28,2.49693469]
[1749634945008,26.0,165.35,165.28,2.49693469]
[1749634945193,10.2672939,165.31,165.28,2.49693469]
[1749634945601,10.2672939,165.3,165.28,2.49693469]
[1749634947518,10.2672939,165.29,165.28,2.49693469]
[1749634948914,18.64964886,165.34,165.28,2.49693469]
[1749634949099,10.2672939,165.3,165.28,2.49693469]
[1749634949999,10.2672939,165.29,165.28,2.49693469]
[1749634950509,18.64964886,165.34,165.28,2.49693469]
[1749634950701,10.2672939,165.29,165.28,2.49693469]
[1749634952932,10.2672939,165.29,165.28,13.75489311]
[1749634953104,10.2672939,165.29,165.28,2.49693469]
[1749634953723,28.91694276,165.29,165.28,2.49693469]
[1749634955020,10.2672939,165.29,165.28,2.49693469]
[1749634958124,18.64964886,165.34,165.28,2.49693469]
[1749634958635,10.2672939,165.29,165.28,2.49693469]
[1749634960902,39.18423666,165.29,165.28,2.49693469]
[1749634962627,18.64964886,165.25,165.16,11.8032939]
[1749634962831,10.2672939,165.21,165.16,37.8032939]
[1749634963811,10.2672939,165.22,165.17,10.2672939]
[1749634964304,10.2672939,165.22,165.16,27.536]
[1749634964507,10.2672939,165.22,165.17,10.2672939]
[1749634965619,10.2672939,165.22,165.17,10.2672939]
[1749634966008,10.2672939,165.21,165.17,26.0]
[1749634967034,10.2672939,165.28,165.19,10.2672939]
[1749634967232,10.2672939,165.23,165.18,35.3472939]
[1749634967712,10.2672939,165.24,165.19,10.2672939]
[1749634968112,10.2672939,165.31,165.23,11.8229939]
[1749634968322,10.2672939,165.31,165.26,10.2672939]
[1749634970612,10.2672939,165.3,165.25,10.2672939]
[1749634971210,9.26753302,165.35,165.25,10.2672939]
[1749634971417,10.2672939,165.31,165.26,36.2672939]
[1749634972525,10.2672939,165.34,165.29,10.2672939]
[1749634973736,10.2672939,165.33,165.28,10.2672939]